[Event "DVM U12w 2023"]
[Site "Magdeburg"]
[Date "2023.12.27"]
[Round "1"]
[White "Briese, Sophie"]
[Black "Kuhlmann, Naya"]
[Result "1-0"]
[WhiteElo "1207"]
[BlackElo "1005"]
[PlyCount "79"]
[EventDate "2022.12.27"]
[EventType "team-tourn"]
[EventRounds "7"]
[EventCountry "GER"]
[TimeControl "40/5400+30:1800+30"]
[WhiteClock "0:41:47"]
[BlackClock "0:58:43"]

1. e4 {[%emt 0:00:03]} e5 {[%emt 0:00:07]} 2. Nf3 {[%emt 0:00:06]} Nc6 {[%emt 0:00:06]} 3. Bc4 {[%emt 0:00:07]} Bc5 {[%emt 0:00:10]} 4. c3 {[%emt 0:00:09]} Nf6 {[%emt 0:01:51]} 5. d4 {[%emt 0:00:08]} exd4 {[%emt 0:00:08]} 6. e5 {[%emt 0:00:11]} Ng8 {[%emt 0:01:05]} 7. cxd4 {[%emt 0:00:22]} Bb6 {[%emt 0:00:24]} 8. Nc3 {[%emt 0:00:56]} Nge7 {[%emt 0:01:35]} 9. O-O {[%emt 0:01:35]} O-O {[%emt 0:00:08]} 10. Qd3 {[%emt 0:01:37]} d6 {[%emt 0:02:11]} 11. exd6 {[%emt 0:05:40]} cxd6 {[%emt 0:00:20]} 12. Ng5 {[%emt 0:00:37]} Bf5 {[%emt 0:00:56]} 13. Qd1 {[%emt 0:02:45]} d5 {[%emt 0:00:55]} 14. Bd3 {[%emt 0:01:15]} Nxd4 {[%emt 0:02:06]} 15. Bxf5 {[%emt 0:01:08]} Ndxf5 {[%emt 0:00:50]} 16. Qd3 {[%emt 0:01:21]} f6 {[%emt 0:01:03]} 17. Ne6 {[%emt 0:01:46]} Qd6 {[%emt 0:02:19]} 18. Nxf8 {[%emt 0:00:35]} Rxf8 {[%emt 0:01:40]} 19. Re1 {[%emt 0:02:54]} Bc7 {[%emt 0:02:02]} 20. g3 {[%emt 0:01:38]} Bb6 {[%emt 0:03:02]} 21. Bf4 {[%emt 0:01:44]} Qc5 {[%emt 0:03:58]} 22. Re2 {[%emt 0:02:49]} Nd4 {[%emt 0:03:44]} 23. Rd2 {[%emt 0:01:26]} Nef5 {[%emt 0:00:48]} 24. Na4 {[%emt 0:02:00]} Qb4 {[%emt 0:01:33]} 25. Nxb6 {[%emt 0:00:38]} Qxb6 {[%emt 0:00:10]} 26. g4 {[%emt 0:02:34]} Nh4 {[%emt 0:02:08]} 27. Kh1 {[%emt 0:00:54]} Nhf3 {[%emt 0:01:00]} 28. Rdd1 {[%emt 0:05:00]} Qe6 {[%emt 0:01:50]} 29. h3 {[%emt 0:03:36]} f5 {[%emt 0:01:06]} 30. Qe3 {[%emt 0:04:39]} Qf6 {[%emt 0:01:33]} 31. g5 {[%emt 0:02:15]} Qg6 {[%emt 0:00:39]} 32. Rxd4 {[%emt 0:01:07]} Qh5 {[%emt 0:00:12]} 33. Bh2 {[%emt 0:02:55]} Qxh3 {[%emt 0:01:27]} 34. Qf4 {[%emt 0:00:50]} Re8 {[%emt 0:00:17]} 35. Rdd1 {[%emt 0:01:54]} Re4 {[%emt 0:03:38]} 36. Qg3 {[%emt 0:02:21]} Qh5 {[%emt 0:00:47]} 37. Rxd5 {[%emt 0:04:33]} Rh4 {[%emt 0:01:59]} 38. Qb8+ {[%emt 0:01:49]} Kf7 {[%emt 0:00:32]} 39. Rd7+ {[%emt 0:00:16]} Ke6 {[%emt 0:00:58]} 40. Qd6# {[%emt 0:00:57] normal} 1-0

[Event "DVM U12w 2023"]
[Site "Magdeburg"]
[Date "2023.12.27"]
[Round "1"]
[White "Mauhs, Helena"]
[Black "Nikitina, Alisa"]
[Result "1-0"]
[WhiteElo "1194"]
[BlackElo "1004"]
[PlyCount "33"]
[EventDate "2022.12.27"]
[EventType "team-tourn"]
[EventRounds "7"]
[EventCountry "GER"]
[TimeControl "40/5400+30:1800+30"]
[WhiteClock "1:30:19"]
[BlackClock "1:12:53"]

1. e4 {[%emt 0:00:04]} e5 {[%emt 0:00:07]} 2. Nf3 {[%emt 0:00:07]} Nc6 {[%emt 0:00:08]} 3. Bc4 {[%emt 0:00:20]} Nf6 {[%emt 0:00:36]} 4. Nc3 {[%emt 0:00:55]} Bc5 {[%emt 0:00:36]} 5. d3 {[%emt 0:00:18]} d6 {[%emt 0:00:38]} 6. Bg5 {[%emt 0:00:43]} Bg4 {[%emt 0:00:20]} 7. Nd5 {[%emt 0:00:21]} O-O {[%emt 0:02:55]} 8. Nxf6+ {[%emt 0:00:28]} gxf6 {[%emt 0:00:24]} 9. Bh6 {[%emt 0:00:27]} Re8 {[%emt 0:06:36]} 10. h3 {[%emt 0:01:45]} Bh5 {[%emt 0:01:23]} 11. g4 {[%emt 0:00:36]} Bg6 {[%emt 0:00:17]} 12. h4 {[%emt 0:00:40]} Nd4 {[%emt 0:07:06]} 13. h5 {[%emt 0:00:46]} Bxh5 {[%emt 0:01:15]} 14. gxh5 {[%emt 0:00:16]} Rf8 {[%emt 0:02:10]} 15. Rg1+ {[%emt 0:00:32]} Kh8 {[%emt 0:00:24]} 16. Bg7+ {[%emt 0:00:07]} Kg8 {[%emt 0:00:42]} 17. Bxf6# {[%emt 0:00:16] normal} 1-0

[Event "DVM U12w 2023"]
[Site "Magdeburg"]
[Date "2023.12.27"]
[Round "1"]
[White "Albrecht, Sidney Jenna"]
[Black "Rafikova, Ailin"]
[Result "0-1"]
[WhiteElo "1188"]
[BlackElo "1399"]
[PlyCount "64"]
[EventDate "2022.12.27"]
[EventType "team-tourn"]
[EventRounds "7"]
[EventCountry "GER"]
[TimeControl "40/5400+30:1800+30"]
[WhiteClock "0:38:37"]
[BlackClock "0:17:41"]

1. c4 {[%emt 0:00:03]} Nf6 {[%emt 0:00:09]} 2. Nc3 {[%emt 0:00:06]} g6 {[%emt 0:00:15]} 3. g3 {[%emt 0:00:08]} Bg7 {[%emt 0:00:17]} 4. Bg2 {[%emt 0:00:07]} d6 {[%emt 0:00:44]} 5. d4 {[%emt 0:01:16]} O-O {[%emt 0:03:15]} 6. Nf3 {[%emt 0:01:42]} Nbd7 {[%emt 0:04:01]} 7. O-O {[%emt 0:02:48]} c5 {[%emt 0:03:01]} 8. e3 {[%emt 0:01:56]} Rb8 {[%emt 0:04:03]} 9. Re1 {[%emt 0:03:35]} a6 {[%emt 0:02:28]} 10. Qd3 {[%emt 0:04:40]} Ne8 {[%emt 0:04:24]} 11. dxc5 {[%emt 0:05:13]} Nxc5 {[%emt 0:01:41]} 12. Qd1 {[%emt 0:01:47]} b6 {[%emt 0:06:01]} 13. Nd4 {[%emt 0:05:32]} Bb7 {[%emt 0:07:04]} 14. Nc6 {[%emt 0:01:50]} Bxc6 {[%emt 0:03:26]} 15. Bxc6 {[%emt 0:00:11]} e6 {[%emt 0:04:13]} 16. Qd2 {[%emt 0:04:34]} Qc7 {[%emt 0:06:17]} 17. Bg2 {[%emt 0:03:12]} Nf6 {[%emt 0:03:12]} 18. Qd4 {[%emt 0:06:09]} Nfe4 {[%emt 0:09:16]} 19. Qd1 {[%emt 0:12:37]} Nxc3 {[%emt 0:00:41]} 20. bxc3 {[%emt 0:00:19]} Bxc3 {[%emt 0:02:30]} 21. Bd2 {[%emt 0:01:55]} Bxa1 {[%emt 0:01:04]} 22. Qxa1 {[%emt 0:00:09]} Nd3 {[%emt 0:03:25]} 23. Rf1 {[%emt 0:02:22]} Qxc4 {[%emt 0:03:30]} 24. e4 {[%emt 0:01:07]} e5 {[%emt 0:02:01]} 25. f4 {[%emt 0:00:51]} Qc5+ {[%emt 0:02:43]} 26. Kh1 {[%emt 0:00:33]} Nf2+ {[%emt 0:01:50]} 27. Rxf2 {[%emt 0:01:07]} Qxf2 {[%emt 0:00:33]} 28. Bc3 {[%emt 0:00:37]} f6 {[%emt 0:03:35]} 29. Bf1 {[%emt 0:00:23]} Rbc8 {[%emt 0:01:18]} 30. Bxa6 {[%emt 0:00:31]} Qf3+ {[%emt 0:00:36]} 31. Kg1 {[%emt 0:00:09]} Qxc3 {[%emt 0:01:11]} 32. Qxc3 {[%emt 0:00:24]} Rxc3 {[%emt 0:00:05] normal} 0-1

[Event "DVM U12w 2023"]
[Site "Magdeburg"]
[Date "2023.12.27"]
[Round "1"]
[White "Ruddat, Maila"]
[Black "Hofmeier, Viktoria"]
[Result "1/2-1/2"]
[WhiteElo "1187"]
[BlackElo "1408"]
[PlyCount "97"]
[EventDate "2022.12.27"]
[EventType "team-tourn"]
[EventRounds "7"]
[EventCountry "GER"]
[TimeControl "40/5400+30:1800+30"]
[WhiteClock "1:08:30"]
[BlackClock "1:19:37"]

1. e4 {[%emt 0:00:04]} e5 {[%emt 0:00:13]} 2. Nf3 {[%emt 0:00:20]} Nc6 {[%emt 0:00:13]} 3. d4 {[%emt 0:00:47]} exd4 {[%emt 0:00:25]} 4. Bc4 {[%emt 0:00:52]} Nf6 {[%emt 0:01:33]} 5. O-O {[%emt 0:01:22]} Bc5 {[%emt 0:06:25]} 6. Re1 {[%emt 0:05:22]} O-O {[%emt 0:01:33]} 7. Bg5 {[%emt 0:02:36]} Be7 {[%emt 0:00:50]} 8. Nxd4 {[%emt 0:01:54]} d5 {[%emt 0:02:48]} 9. exd5 {[%emt 0:01:22]} Nxd5 {[%emt 0:00:17]} 10. Bxd5 {[%emt 0:02:15]} Nxd4 {[%emt 0:01:50]} 11. Bxe7 {[%emt 0:01:28]} Qxd5 {[%emt 0:00:42]} 12. Bxf8 {[%emt 0:00:55]} Kxf8 {[%emt 0:01:57]} 13. c3 {[%emt 0:00:41]} Bf5 {[%emt 0:02:02]} 14. Qxd4 {[%emt 0:01:07]} Qc6 {[%emt 0:01:11]} 15. h3 {[%emt 0:01:29]} Kg8 {[%emt 0:01:21]} 16. Qe5 {[%emt 0:01:00]} Be6 {[%emt 0:00:47]} 17. Nd2 {[%emt 0:00:46]} h6 {[%emt 0:00:55]} 18. Nf3 {[%emt 0:01:29]} Rd8 {[%emt 0:00:46]} 19. Rad1 {[%emt 0:00:47]} Re8 {[%emt 0:00:25]} 20. Qg3 {[%emt 0:01:23]} Qb6 {[%emt 0:00:59]} 21. b3 {[%emt 0:01:04]} Qa5 {[%emt 0:00:34]} 22. Nd4 {[%emt 0:02:27]} Qxa2 {[%emt 0:01:26]} 23. Nxe6 {[%emt 0:01:01]} fxe6 {[%emt 0:00:11]} 24. Qxc7 {[%emt 0:00:53]} Rf8 {[%emt 0:00:31]} 25. f3 {[%emt 0:00:53]} Qxb3 {[%emt 0:00:08]} 26. Rd7 {[%emt 0:00:47]} Qb6+ {[%emt 0:00:49]} 27. Qxb6 {[%emt 0:00:26]} axb6 {[%emt 0:00:03]} 28. Rxe6 {[%emt 0:00:25]} Rc8 {[%emt 0:00:28]} 29. Rxb7 {[%emt 0:00:44]} Rxc3 {[%emt 0:00:03]} 30. Rexb6 {[%emt 0:00:27]} Rc1+ {[%emt 0:00:26]} 31. Kh2 {[%emt 0:00:13]} Rc5 {[%emt 0:00:07]} 32. Ra6 {[%emt 0:00:28]} Kh7 {[%emt 0:00:17]} 33. Raa7 {[%emt 0:00:22]} Rg5 {[%emt 0:00:09]} 34. h4 {[%emt 0:00:23]} Rg6 {[%emt 0:00:08]} 35. g4 {[%emt 0:00:30]} Kh8 {[%emt 0:00:23]} 36. Kg3 {[%emt 0:00:30]} h5 {[%emt 0:00:11]} 37. Kh3 {[%emt 0:00:19]} hxg4+ {[%emt 0:00:12]} 38. fxg4 {[%emt 0:00:16]} Kh7 {[%emt 0:00:09]} 39. h5 {[%emt 0:00:28]} Rg5 {[%emt 0:00:13]} 40. Kh4 {[%emt 0:00:33]} Re5 {[%emt 0:00:10]} 41. Rxg7+ {[%emt 0:30:29]} Kh8 {[%emt 0:30:08]} 42. Rgd7 {[%emt 0:00:23]} Re8 {[%emt 0:00:09]} 43. h6 {[%emt 0:00:31]} Kg8 {[%emt 0:00:11]} 44. g5 {[%emt 0:00:22]} Re4+ {[%emt 0:00:09]} 45. Kh5 {[%emt 0:00:13]} Re8 {[%emt 0:00:05]} 46. h7+ {[%emt 0:00:54]} Kh8 {[%emt 0:00:08]} 47. g6 {[%emt 0:00:24]} Re5+ {[%emt 0:00:09]} 48. Kh6 {[%emt 0:00:12]} Rh5+ {[%emt 0:00:04]} 49. Kxh5 {[%emt 0:01:54] normal} 1/2-1/2

[Event "DVM U12w 2023"]
[Site "Magdeburg"]
[Date "2023.12.27"]
[Round "1"]
[White "Daaboul, Dima"]
[Black "Gelbach, Amelia"]
[Result "1-0"]
[WhiteElo "1184"]
[BlackElo "841"]
[PlyCount "57"]
[EventDate "2022.12.27"]
[EventType "team-tourn"]
[EventRounds "7"]
[EventCountry "GER"]
[TimeControl "40/5400+30:1800+30"]
[WhiteClock "0:45:32"]
[BlackClock "1:18:05"]

1. e4 {[%emt 0:00:03]} e5 {[%emt 0:00:08]} 2. Nf3 {[%emt 0:00:07]} Nc6 {[%emt 0:00:15]} 3. Bc4 {[%emt 0:00:18]} Nf6 {[%emt 0:00:19]} 4. Nc3 {[%emt 0:00:11]} Bb4 {[%emt 0:00:27]} 5. d3 {[%emt 0:02:07]} Bxc3+ {[%emt 0:00:21]} 6. bxc3 {[%emt 0:00:08]} h6 {[%emt 0:00:51]} 7. O-O {[%emt 0:01:05]} O-O {[%emt 0:00:08]} 8. Re1 {[%emt 0:01:06]} d6 {[%emt 0:01:04]} 9. h3 {[%emt 0:01:43]} Bd7 {[%emt 0:00:16]} 10. Be3 {[%emt 0:06:13]} Re8 {[%emt 0:00:44]} 11. Qe2 {[%emt 0:15:32]} Be6 {[%emt 0:02:12]} 12. Bb5 {[%emt 0:02:23]} Qd7 {[%emt 0:00:32]} 13. Red1 {[%emt 0:01:14]} a6 {[%emt 0:00:23]} 14. Ba4 {[%emt 0:00:53]} b5 {[%emt 0:01:12]} 15. Bb3 {[%emt 0:00:54]} Bxb3 {[%emt 0:00:09]} 16. cxb3 {[%emt 0:00:10]} Rab8 {[%emt 0:01:40]} 17. c4 {[%emt 0:03:22]} b4 {[%emt 0:00:40]} 18. Rac1 {[%emt 0:08:01]} Qe6 {[%emt 0:02:22]} 19. c5 {[%emt 0:05:40]} dxc5 {[%emt 0:00:54]} 20. Rxc5 {[%emt 0:00:54]} Nd7 {[%emt 0:02:07]} 21. Rc2 {[%emt 0:00:41]} Rb5 {[%emt 0:02:39]} 22. Rdc1 {[%emt 0:00:41]} Ne7 {[%emt 0:00:57]} 23. Rxc7 {[%emt 0:00:35]} Nf6 {[%emt 0:01:02]} 24. Bc5 {[%emt 0:02:26]} Ng6 {[%emt 0:01:29]} 25. Be3 {[%emt 0:01:17]} Nf4 {[%emt 0:01:39]} 26. Bxf4 {[%emt 0:00:52]} exf4 {[%emt 0:00:13]} 27. R1c6 {[%emt 0:00:26]} Qe7 {[%emt 0:01:31]} 28. Rxe7 {[%emt 0:00:20]} Rxe7 {[%emt 0:00:11]} 29. Rxa6 {[%emt 0:00:06] normal} 1-0

[Event "DVM U12w 2023"]
[Site "Magdeburg"]
[Date "2023.12.27"]
[Round "1"]
[White "Subocz, Barbara"]
[Black "Strahl, Nele"]
[Result "1-0"]
[WhiteElo "1169"]
[BlackElo "783"]
[PlyCount "113"]
[EventDate "2022.12.27"]
[EventType "team-tourn"]
[EventRounds "7"]
[EventCountry "GER"]
[TimeControl "40/5400+30:1800+30"]
[WhiteClock "1:04:53"]
[BlackClock "0:47:36"]

1. e4 {[%emt 0:00:03]} e5 {[%emt 0:00:08]} 2. f4 {[%emt 0:00:05]} Nc6 {[%emt 0:01:19]} 3. Nf3 {[%emt 0:00:28]} exf4 {[%emt 0:01:07]} 4. Nc3 {[%emt 0:00:19]} Nf6 {[%emt 0:00:42]} 5. d4 {[%emt 0:00:09]} d6 {[%emt 0:02:13]} 6. Bxf4 {[%emt 0:01:05]} Be7 {[%emt 0:01:21]} 7. Bc4 {[%emt 0:00:46]} O-O {[%emt 0:01:33]} 8. O-O {[%emt 0:00:24]} Bg4 {[%emt 0:00:52]} 9. h3 {[%emt 0:04:00]} Bh5 {[%emt 0:00:43]} 10. Qd3 {[%emt 0:00:20]} Re8 {[%emt 0:01:22]} 11. Rad1 {[%emt 0:02:39]} Nb4 {[%emt 0:04:09]} 12. Qd2 {[%emt 0:03:28]} d5 {[%emt 0:02:15]} 13. exd5 {[%emt 0:02:22]} Nfxd5 {[%emt 0:00:45]} 14. Nxd5 {[%emt 0:00:58]} Nxd5 {[%emt 0:00:46]} 15. Bg3 {[%emt 0:00:39]} h6 {[%emt 0:02:05]} 16. Qd3 {[%emt 0:05:50]} Bg5 {[%emt 0:02:45]} 17. Bxd5 {[%emt 0:02:50]} Qxd5 {[%emt 0:04:16]} 18. Rde1 {[%emt 0:06:09]} Qxa2 {[%emt 0:03:40]} 19. Nxg5 {[%emt 0:00:50]} hxg5 {[%emt 0:01:30]} 20. Qb5 {[%emt 0:01:25]} f6 {[%emt 0:02:12]} 21. Rxe8+ {[%emt 0:00:15]} Rxe8 {[%emt 0:01:02]} 22. Qxb7 {[%emt 0:00:24]} Kf8 {[%emt 0:02:08]} 23. Qxc7 {[%emt 0:00:42]} Qxb2 {[%emt 0:01:53]} 24. Qa5 {[%emt 0:01:07]} Qxc2 {[%emt 0:01:44]} 25. Qxg5 {[%emt 0:00:26]} Re2 {[%emt 0:02:26]} 26. Bd6+ {[%emt 0:02:17]} Kg8 {[%emt 0:01:26]} 27. Qxh5 {[%emt 0:01:41]} Qe4 {[%emt 0:01:55]} 28. Qg4 {[%emt 0:01:08]} Qxg4 {[%emt 0:02:56]} 29. hxg4 {[%emt 0:00:21]} a5 {[%emt 0:00:31]} 30. d5 {[%emt 0:00:39]} Rd2 {[%emt 0:00:44]} 31. Ra1 {[%emt 0:00:27]} Rxd5 {[%emt 0:00:45]} 32. Bc7 {[%emt 0:00:11]} Rg5 {[%emt 0:00:37]} 33. Bxa5 {[%emt 0:00:41]} Rxg4 {[%emt 0:00:18]} 34. Kh2 {[%emt 0:00:28]} f5 {[%emt 0:01:47]} 35. Rf1 {[%emt 0:00:49]} g6 {[%emt 0:00:21]} 36. Kh3 {[%emt 0:00:10]} Kh7 {[%emt 0:00:18]} 37. Bd2 {[%emt 0:00:49]} g5 {[%emt 0:01:51]} 38. Rxf5 {[%emt 0:00:50]} Rh4+ {[%emt 0:03:25]} 39. Kg3 {[%emt 0:00:15]} Rd4 {[%emt 0:01:39]} 40. Bc1 {[%emt 0:00:52]} Kg6 {[%emt 0:00:47]} 41. Rxg5+ {[%emt 0:30:31]} Kh6 {[%emt 0:30:55]} 42. Rg4+ {[%emt 0:00:24]} Rf4 {[%emt 0:00:49]} 43. Bxf4+ {[%emt 0:00:15]} Kh5 {[%emt 0:00:19]} 44. Rg5+ {[%emt 0:00:28]} Kh6 {[%emt 0:00:23]} 45. Kg4 {[%emt 0:00:12]} Kh7 {[%emt 0:00:10]} 46. Ra5 {[%emt 0:00:23]} Kg7 {[%emt 0:00:15]} 47. Ra6 {[%emt 0:00:19]} Kf7 {[%emt 0:00:12]} 48. Kg5 {[%emt 0:00:18]} Ke7 {[%emt 0:00:10]} 49. Kf5 {[%emt 0:00:10]} Kd7 {[%emt 0:01:30]} 50. Ke5 {[%emt 0:00:21]} Kc7 {[%emt 0:00:11]} 51. g4 {[%emt 0:00:13]} Kd7 {[%emt 0:00:23]} 52. g5 {[%emt 0:00:09]} Ke8 {[%emt 0:00:11]} 53. Ra7 {[%emt 0:00:15]} Kf8 {[%emt 0:00:14]} 54. Ke6 {[%emt 0:00:13]} Kg8 {[%emt 0:00:32]} 55. Kf6 {[%emt 0:00:25]} Kh8 {[%emt 0:00:14]} 56. Kg6 {[%emt 0:00:06]} Kg8 {[%emt 0:00:10]} 57. Ra8# {[%emt 0:00:04] normal} 1-0

[Event "DVM U12w 2023"]
[Site "Magdeburg"]
[Date "2023.12.27"]
[Round "1"]
[White "Piffczyk, Sandra"]
[Black "Yamshchikova, Oleksandra"]
[Result "0-1"]
[WhiteElo "1105"]
[BlackElo "956"]
[PlyCount "40"]
[EventDate "2022.12.27"]
[EventType "team-tourn"]
[EventRounds "7"]
[EventCountry "GER"]
[TimeControl "40/5400+30:1800+30"]
[WhiteClock "1:08:43"]
[BlackClock "1:30:40"]

1. e4 {[%emt 0:00:00]} e5 {[%emt 0:00:00]} 2. Nf3 {[%emt 0:00:00]} Nc6 {[%emt 0:00:00]} 3. Nc3 {[%emt 0:00:35]} Nf6 {[%emt 0:00:00]} 4. Bb5 {[%emt 0:00:12]} d6 {[%emt 0:00:25]} 5. d3 {[%emt 0:00:38]} a6 {[%emt 0:00:17]} 6. Ba4 {[%emt 0:00:53]} b5 {[%emt 0:00:09]} 7. Bb3 {[%emt 0:00:28]} Be6 {[%emt 0:00:16]} 8. Bg5 {[%emt 0:03:31]} Be7 {[%emt 0:00:30]} 9. Qd2 {[%emt 0:07:28]} h6 {[%emt 0:00:54]} 10. Bh4 {[%emt 0:01:26]} g5 {[%emt 0:00:37]} 11. Bg3 {[%emt 0:00:42]} g4 {[%emt 0:00:20]} 12. Nh4 {[%emt 0:01:16]} Nh5 {[%emt 0:00:30]} 13. Nf5 {[%emt 0:01:44]} Bg5 {[%emt 0:00:35]} 14. Qe2 {[%emt 0:02:03]} Nxg3 {[%emt 0:01:59]} 15. hxg3 {[%emt 0:01:13]} h5 {[%emt 0:01:01]} 16. Ng7+ {[%emt 0:01:59]} Ke7 {[%emt 0:00:28]} 17. Nxe6 {[%emt 0:05:01]} fxe6 {[%emt 0:00:26]} 18. Rxh5 {[%emt 0:02:03]} Rxh5 {[%emt 0:00:21]} 19. Qxg4 {[%emt 0:00:23]} Rh1+ {[%emt 0:00:25]} 20. Ke2 {[%emt 0:00:12]} Nd4# {[%emt 0:00:37] normal} 0-1

[Event "DVM U12w 2023"]
[Site "Magdeburg"]
[Date "2023.12.27"]
[Round "1"]
[White "Schmidt Guevara, Daniela"]
[Black "Satheesh, Yazhini"]
[Result "1/2-1/2"]
[WhiteElo "1083"]
[BlackElo "859"]
[PlyCount "47"]
[EventDate "2022.12.27"]
[EventType "team-tourn"]
[EventRounds "7"]
[EventCountry "GER"]
[TimeControl "40/5400+30:1800+30"]
[WhiteClock "1:06:37"]
[BlackClock "1:11:18"]

1. e4 {[%emt 0:00:04]} e5 {[%emt 0:00:10]} 2. Nf3 {[%emt 0:00:07]} Nc6 {[%emt 0:00:16]} 3. Bc4 {[%emt 0:00:14]} Bc5 {[%emt 0:00:27]} 4. Nc3 {[%emt 0:00:17]} Nf6 {[%emt 0:00:34]} 5. d3 {[%emt 0:00:12]} d6 {[%emt 0:00:39]} 6. Bg5 {[%emt 0:00:28]} h6 {[%emt 0:00:59]} 7. Bh4 {[%emt 0:00:29]} g5 {[%emt 0:00:50]} 8. Bg3 {[%emt 0:00:16]} Bg4 {[%emt 0:00:48]} 9. h3 {[%emt 0:00:20]} Bh5 {[%emt 0:00:36]} 10. a3 {[%emt 0:00:58]} Nd4 {[%emt 0:00:36]} 11. b4 {[%emt 0:04:35]} Bb6 {[%emt 0:01:10]} 12. Nb5 {[%emt 0:01:41]} Nxf3+ {[%emt 0:04:46]} 13. gxf3 {[%emt 0:00:26]} Qd7 {[%emt 0:01:37]} 14. Qe2 {[%emt 0:02:45]} O-O-O {[%emt 0:01:20]} 15. O-O-O {[%emt 0:02:37]} a6 {[%emt 0:02:16]} 16. Nc3 {[%emt 0:01:29]} Bd4 {[%emt 0:01:43]} 17. Nb1 {[%emt 0:05:48]} Qa4 {[%emt 0:04:00]} 18. Bb3 {[%emt 0:00:38]} Qc6 {[%emt 0:01:19]} 19. h4 {[%emt 0:01:39]} g4 {[%emt 0:03:59]} 20. c3 {[%emt 0:05:13]} Bxc3 {[%emt 0:01:16]} 21. Nxc3 {[%emt 0:01:03]} Qxc3+ {[%emt 0:00:33]} 22. Qc2 {[%emt 0:00:37]} Qxc2+ {[%emt 0:00:37]} 23. Bxc2 {[%emt 0:00:17]} gxf3 {[%emt 0:00:11]} 24. d4 {[%emt 0:03:40] normal} 1/2-1/2

[Event "DVM U12w 2023"]
[Site "Magdeburg"]
[Date "2023.12.27"]
[Round "1"]
[White "Shakhimardanova, Nigina"]
[Black "Kuebart, Ela Marie"]
[Result "1-0"]
[WhiteElo "1067"]
[BlackElo "1325"]
[PlyCount "59"]
[EventDate "2022.12.27"]
[EventType "team-tourn"]
[EventRounds "7"]
[EventCountry "GER"]
[TimeControl "40/5400+30:1800+30"]
[WhiteClock "1:28:30"]
[BlackClock "0:59:25"]

1. e4 {[%emt 0:00:01]} e6 {[%emt 0:00:22]} 2. d4 {[%emt 0:00:07]} d5 {[%emt 0:00:05]} 3. exd5 {[%emt 0:00:08]} exd5 {[%emt 0:00:16]} 4. Nf3 {[%emt 0:00:15]} Nf6 {[%emt 0:00:36]} 5. Be2 {[%emt 0:00:12]} Be7 {[%emt 0:00:48]} 6. O-O {[%emt 0:00:07]} O-O {[%emt 0:00:12]} 7. Bg5 {[%emt 0:00:29]} Bf5 {[%emt 0:00:31]} 8. Nc3 {[%emt 0:00:21]} Re8 {[%emt 0:00:37]} 9. Qd2 {[%emt 0:01:32]} Ne4 {[%emt 0:03:03]} 10. Nxe4 {[%emt 0:01:30]} dxe4 {[%emt 0:01:10]} 11. Bxe7 {[%emt 0:00:22]} Qxe7 {[%emt 0:01:24]} 12. Ne5 {[%emt 0:00:07]} c5 {[%emt 0:02:29]} 13. c3 {[%emt 0:02:33]} f6 {[%emt 0:01:40]} 14. Ng4 {[%emt 0:00:33]} Bxg4 {[%emt 0:02:37]} 15. Bxg4 {[%emt 0:00:07]} c4 {[%emt 0:01:05]} 16. f3 {[%emt 0:02:08]} e3 {[%emt 0:01:59]} 17. Qe2 {[%emt 0:00:07]} b5 {[%emt 0:00:46]} 18. f4 {[%emt 0:01:03]} Qe4 {[%emt 0:04:05]} 19. Bf3 {[%emt 0:01:00]} Qd3 {[%emt 0:00:27]} 20. Rae1 {[%emt 0:02:12]} Qxe2 {[%emt 0:05:53]} 21. Rxe2 {[%emt 0:00:35]} Na6 {[%emt 0:03:20]} 22. Bxa8 {[%emt 0:00:10]} Rxa8 {[%emt 0:00:18]} 23. Rxe3 {[%emt 0:00:05]} b4 {[%emt 0:00:06]} 24. Rfe1 {[%emt 0:00:24]} Kf7 {[%emt 0:02:25]} 25. Re7+ {[%emt 0:00:08]} Kg6 {[%emt 0:00:37]} 26. Re8 {[%emt 0:00:08]} Rxe8 {[%emt 0:04:33]} 27. Rxe8 {[%emt 0:00:05]} bxc3 {[%emt 0:02:42]} 28. bxc3 {[%emt 0:00:08]} Nc7 {[%emt 0:00:38]} 29. Rc8 {[%emt 0:00:16]} Ne6 {[%emt 0:00:51]} 30. g3 {[%emt 0:00:07] normal} 1-0

[Event "DVM U12w 2023"]
[Site "Magdeburg"]
[Date "2023.12.27"]
[Round "1"]
[White "Roessler, Helena"]
[Black "Wolf, Helena"]
[Result "1/2-1/2"]
[WhiteElo "1060"]
[BlackElo "1188"]
[PlyCount "45"]
[EventDate "2022.12.27"]
[EventType "team-tourn"]
[EventRounds "7"]
[EventCountry "GER"]
[TimeControl "40/5400+30:1800+30"]
[WhiteClock "0:24:56"]
[BlackClock "0:23:07"]

1. Nf3 {[%emt 0:00:08]} d5 {[%emt 0:00:15]} 2. g3 {[%emt 0:00:06]} Nf6 {[%emt 0:01:14]} 3. Bg2 {[%emt 0:00:14]} Bf5 {[%emt 0:03:27]} 4. O-O {[%emt 0:00:25]} e6 {[%emt 0:06:49]} 5. d3 {[%emt 0:00:31]} Nc6 {[%emt 0:01:30]} 6. Nbd2 {[%emt 0:00:39]} Bc5 {[%emt 0:01:14]} 7. Re1 {[%emt 0:04:18]} O-O {[%emt 0:04:12]} 8. c4 {[%emt 0:03:32]} Re8 {[%emt 0:03:02]} 9. a3 {[%emt 0:01:24]} a5 {[%emt 0:01:29]} 10. b3 {[%emt 0:04:42]} Ng4 {[%emt 0:04:50]} 11. Rf1 {[%emt 0:02:22]} Qe7 {[%emt 0:07:11]} 12. Bb2 {[%emt 0:00:45]} Rad8 {[%emt 0:00:48]} 13. Qc2 {[%emt 0:04:39]} d4 {[%emt 0:03:10]} 14. h3 {[%emt 0:01:59]} Nf6 {[%emt 0:01:41]} 15. Rfd1 {[%emt 0:08:27]} e5 {[%emt 0:03:19]} 16. Ne4 {[%emt 0:06:29]} Nxe4 {[%emt 0:01:11]} 17. dxe4 {[%emt 0:00:08]} Bg6 {[%emt 0:01:18]} 18. Nh4 {[%emt 0:18:31]} Rf8 {[%emt 0:04:49]} 19. Nf5 {[%emt 0:06:10]} Qf6 {[%emt 0:04:28]} 20. Qd3 {[%emt 0:04:58]} Bxf5 {[%emt 0:05:46]} 21. exf5 {[%emt 0:00:15]} Rfe8 {[%emt 0:00:48]} 22. Qe4 {[%emt 0:02:00]} Re7 {[%emt 0:15:52]} 23. Rd3 {[%emt 0:04:22] normal} 1/2-1/2